bitfinex/quotes_BTCUSD_20250513
["timestamp","ask_amount","ask_price","bid_price","bid_amount"]
[1747120832848,0.06194752,102920.0,102910.0,0.80731802]
[1747120833076,0.06194752,102920.0,102910.0,0.80731745]
[1747120833302,0.26598939,102920.0,102910.0,0.80731745]
[1747120834170,0.07166371,102920.0,102910.0,0.80731745]
[1747120835022,0.07166371,102920.0,102910.0,0.79743048]
[1747120835693,0.25627377,102920.0,102910.0,0.55316366]
[1747120835901,0.25627377,102920.0,102910.0,0.57259726]
[1747120836313,0.25627377,102920.0,102910.0,0.58231392]
[1747120836580,0.25627377,102920.0,102910.0,0.59203048]
[1747120836779,0.0522319,102920.0,102910.0,0.59203048]
[1747120838712,0.24655758,102920.0,102910.0,0.59203048]
[1747120838931,0.25627377,102920.0,102910.0,0.59203048]
[1747120839153,0.0522319,102920.0,102910.0,0.59203048]
[1747120839884,0.07166342,102920.0,102910.0,0.59203048]
[1747120841038,0.06194733,102920.0,102910.0,0.59203048]
[1747120841459,0.07166342,102920.0,102910.0,0.59203048]
[1747120841666,0.04624733,102920.0,102910.0,0.59203048]
[1747120841991,0.05596342,102920.0,102910.0,0.59203048]
[1747120842251,0.04624733,102920.0,102910.0,0.59203048]
[1747120842966,0.05596342,102920.0,102910.0,0.59203048]
[1747120843123,0.07186342,102920.0,102910.0,0.59203048]
[1747120843318,0.05243133,102920.0,102910.0,0.59203048]
[1747120843520,0.02043133,102920.0,102910.0,0.59203048]
[1747120843721,0.03014742,102920.0,102910.0,0.59203048]
[1747120843968,0.03663133,102920.0,102910.0,0.59203048]
[1747120844176,0.06154742,102920.0,102910.0,0.59203048]
[1747120844316,0.06154733,102920.0,102910.0,0.59203048]
[1747120844521,0.05183133,102920.0,102910.0,0.59203048]
[1747120847449,0.06154733,102920.0,102910.0,0.59203048]
[1747120847596,0.06154742,102920.0,102910.0,0.59203048]
[1747120849179,0.06154733,102920.0,102910.0,0.59203048]
[1747120849982,0.07063851,102920.0,102910.0,0.59203048]
[1747120850429,0.0803546,102920.0,102910.0,0.59203048]
[1747120851474,0.27468028,102920.0,102910.0,0.57259726]
[1747120851706,0.26496476,102920.0,102910.0,0.57259726]
[1747120851903,0.24553295,102920.0,102910.0,0.55319714]
[1747120852067,0.24553295,102920.0,102910.0,0.56291408]
[1747120852674,0.24553295,102920.0,102910.0,0.57263093]
[1747120853261,0.06092308,102920.0,102910.0,0.58234768]
[1747120853463,0.02952251,102920.0,102910.0,0.77126719]
[1747120853713,0.03923851,102920.0,102910.0,0.75566719]
[1747120853965,0.0489546,102920.0,102910.0,0.75566719]
[1747120854915,0.0489546,102920.0,102910.0,0.59206424]
[1747120855197,0.0489546,102920.0,102910.0,0.75566719]
[1747120856030,0.0489546,102920.0,102910.0,0.59206424]
[1747120856252,0.0639546,102920.0,102910.0,0.59206424]
[1747120856469,0.02952251,102920.0,102910.0,0.59206424]
[1747120857016,0.0489546,102920.0,102910.0,0.59206424]
[1747120857222,0.02952251,102920.0,102910.0,0.59206424]
[1747120857393,0.03923841,102920.0,102910.0,0.59206424]
[1747120857541,0.02952251,102920.0,102910.0,0.59206424]
[1747120857780,0.03923851,102920.0,102910.0,0.75566719]
[1747120857979,0.02952251,102920.0,102910.0,0.75566719]
[1747120859024,0.03923841,102920.0,102910.0,0.75566719]
[1747120859820,0.03923841,102920.0,102910.0,0.59206424]
[1747120860031,0.06545441,102920.0,102910.0,0.59206424]
[1747120860394,0.03923841,102920.0,102910.0,0.59206424]
[1747120861561,0.02952241,102920.0,102910.0,0.59206424]
[1747120862180,0.03923841,102920.0,102910.0,0.59206424]
[1747120862499,0.02952241,102920.0,102910.0,0.59206424]
[1747120863350,0.02952232,102920.0,102910.0,0.60736424]
[1747120863530,0.03923822,102920.0,102910.0,0.62276424]
[1747120863669,0.02952232,102920.0,102910.0,0.77096719]
[1747120864078,0.02952232,102920.0,102910.0,0.78726719]
[1747120864291,0.0198067,102920.0,102910.0,0.98822719]
[1747120864503,0.02952241,102920.0,102910.0,0.98822719]
[1747120864889,0.02952241,102920.0,102910.0,0.79302424]
[1747120865106,0.0489545,102920.0,102910.0,0.79302424]
[1747120865392,0.25299637,102920.0,102910.0,0.79302424]
[1747120865591,0.05867145,102920.0,102910.0,0.79302424]
[1747120865780,0.07377145,102920.0,102910.0,0.79302424]
[1747120865993,0.26396542,102920.0,102910.0,0.75415714]
[1747120866199,0.30979264,102920.0,102910.0,0.75415714]
[1747120866395,0.30007655,102920.0,102910.0,0.55009544]
[1747120866698,0.25424933,102920.0,102910.0,0.74444001]
[1747120867032,0.35155873,102920.0,102910.0,0.21009544]
[1747120867241,0.35155873,102920.0,102910.0,0.00913544]
[1747120868464,0.35155873,102920.0,102910.0,0.20348001]
[1747120868887,0.05992327,102920.0,102910.0,0.23263055]
[1747120869058,0.25424895,102920.0,102910.0,0.23263055]
[1747120869532,0.27368085,102920.0,102910.0,0.23263055]
[1747120869938,0.28339694,102920.0,102910.0,0.23263074]
[1747120870734,0.06963879,102920.0,102910.0,0.2423473]
[1747120870883,0.26809694,102920.0,102910.0,0.2423473]
[1747120871290,0.07063879,102920.0,102910.0,0.2423473]
[1747120871491,0.03923879,102920.0,102910.0,0.2583473]
[1747120871733,0.0295227,102920.0,102910.0,0.2748473]
[1747120872055,0.03923879,102920.0,102910.0,0.2748473]
[1747120873120,0.01009118,102920.0,102910.0,0.77849025]
[1747120873329,0.01009118,102920.0,102910.0,1.05533777]
[1747120873546,0.01009118,102920.0,102910.0,1.31625012]
[1747120873748,0.01009118,102920.0,102910.0,1.71625012]
[1747120873958,0.01009118,102920.0,102910.0,2.62177297]
[1747120874603,0.001,102920.0,102910.0,2.22975545]
[1747120875362,0.001,102920.0,102910.0,2.15172737]
[1747120875602,0.001,102920.0,102910.0,1.95116137]
[1747120875772,0.001,102920.0,102910.0,1.77019037]
[1747120875975,0.001,102920.0,102910.0,1.48501255]
[1747120876181,0.001,102920.0,102910.0,1.70815337]
[1747120876815,0.001,102920.0,102910.0,1.57491537]
[1747120877009,0.001,102920.0,102910.0,1.75158737]
[1747120877231,0.001,102920.0,102910.0,1.57491537]
[1747120878024,0.001,102920.0,102910.0,1.67491737]
[1747120878260,0.001,102920.0,102910.0,1.57491537]
[1747120878468,0.001,102920.0,102910.0,1.36137452]
[1747120878671,0.001,102920.0,102910.0,1.76173452]
[1747120879075,0.001,102920.0,102910.0,1.5125567]
[1747120879308,0.001,102920.0,102910.0,1.76173452]
[1747120882248,0.001,102920.0,102910.0,1.4800567]
[1747120882392,0.001,102920.0,102910.0,1.72923452]
[1747120882587,0.001,102920.0,102910.0,1.34533452]
[1747120882790,0.03593114,102920.0,102910.0,0.9830673]
[1747120883160,0.25607263,102920.0,102910.0,0.41419714]
[1747120883364,0.05203152,102920.0,102910.0,0.43363055]
[1747120883555,0.07146361,102920.0,102910.0,0.77363055]
[1747120883741,0.06174752,102920.0,102910.0,0.77363055]
[1747120883949,0.05203152,102920.0,102910.0,0.77363055]
[1747120884159,0.0326,102920.0,102910.0,1.02280837]
[1747120884425,0.001,102920.0,102910.0,1.02280837]
[1747120884849,0.01071552,102920.0,102910.0,0.77363055]
[1747120885496,0.02043123,102920.0,102910.0,0.77363055]
[1747120885707,0.01071552,102920.0,102910.0,0.77363055]
[1747120886062,0.001,102920.0,102910.0,0.77363055]
[1747120886247,0.01071552,102920.0,102910.0,0.77363055]
[1747120886682,0.001,102920.0,102910.0,0.77363055]
[1747120887094,0.01071552,102920.0,102910.0,0.77363055]
[1747120887503,0.001,102920.0,102910.0,0.77363055]
[1747120887689,0.01071543,102920.0,102910.0,0.77363055]
[1747120889171,0.02043105,102920.0,102910.0,0.77363055]
[1747120889309,0.0167,102920.0,102910.0,0.77363055]
[1747120889511,0.02641543,102920.0,102910.0,0.77363055]
[1747120889937,0.03613105,102920.0,102910.0,0.77363055]
[1747120890261,0.02641543,102920.0,102910.0,0.77363055]
[1747120890468,0.05113105,102920.0,102910.0,0.77363055]
[1747120890673,0.26488844,102920.0,102910.0,0.76391399]
[1747120890879,0.27460453,102920.0,102910.0,0.76391399]
[1747120891082,0.26488967,102920.0,102910.0,0.76391399]
[1747120891265,0.27398085,102920.0,102910.0,0.77363074]
[1747120891462,0.27398085,102920.0,102910.0,0.7833474]
[1747120891665,0.27398085,102920.0,102910.0,0.5823874]
[1747120891863,0.28369713,102920.0,102910.0,0.5823874]
[1747120892254,0.28369713,102920.0,102910.0,0.57267074]
[1747120892612,0.06993898,102920.0,102910.0,0.5823873]
[1747120893226,0.06022232,102920.0,102910.0,0.5823873]
[1747120893455,0.04522223,102920.0,102910.0,0.5823873]
[1747120893863,0.05493804,102920.0,102910.0,0.5823873]
[1747120894071,0.03923804,102920.0,102910.0,0.5823873]
[1747120894696,0.05503804,102920.0,102910.0,0.5823873]
[1747120895502,0.02952223,102920.0,102910.0,0.5823873]
[1747120895701,0.03923804,102920.0,102910.0,0.5823873]
[1747120896484,0.02952223,102920.0,102910.0,0.5823873]
[1747120896936,0.03014676,102920.0,102910.0,0.5823873]
[1747120897520,0.03986257,102920.0,102910.0,0.5823873]
[1747120897831,0.02611543,102920.0,102910.0,0.5823873]
[1747120898028,0.02043105,102920.0,102910.0,0.5823873]
[1747120898236,0.04554686,102920.0,102910.0,0.5823873]
[1747120899281,0.001,102920.0,102910.0,0.86286512]
[1747120899843,0.001,102920.0,102910.0,0.6136873]
[1747120900049,0.001,102920.0,102910.0,0.86286512]
[1747120900718,0.001,102920.0,102910.0,0.96017452]
[1747120901299,0.001,102920.0,102910.0,1.36017452]
[1747120902136,0.001,102920.0,102910.0,1.1109967]
[1747120902329,0.001,102920.0,102910.0,1.36017452]
[1747120904671,0.001,102920.0,102910.0,1.1109967]
[1747120904889,0.001,102920.0,102910.0,0.7109967]
[1747120905292,0.001,102920.0,102910.0,0.87458024]
[1747120906292,0.04341552,102920.0,102910.0,0.5823873]
[1747120906686,0.05313123,102920.0,102910.0,0.5823873]
[1747120907119,0.06284704,102920.0,102910.0,0.5823873]
[1747120907453,0.05313123,102920.0,102910.0,0.5823873]
[1747120908246,0.06284723,102920.0,102910.0,0.5823873]
[1747120908443,0.07256332,102920.0,102910.0,0.5823873]
[1747120908656,0.26688967,102920.0,102910.0,0.57267074]
[1747120908875,0.29357804,102920.0,102910.0,0.55323704]
[1747120909099,0.25655671,102920.0,102910.0,0.55323723]
[1747120909472,0.25655671,102920.0,102910.0,0.56295426]
[1747120909707,0.25655671,102920.0,102910.0,0.5726712]
[1747120910110,0.25655671,102920.0,102910.0,0.56295426]
[1747120910310,0.58373768,102920.0,102910.0,0.00917544]
[1747120910530,0.66154256,102920.0,102910.0,0.00613597]
[1747120911394,0.65244381,102920.0,102910.0,0.00613597]
[1747120911530,0.40313996,102920.0,102910.0,0.00613597]
[1747120911749,0.32533508,102920.0,102910.0,0.00613597]
[1747120912173,0.33533508,102920.0,102910.0,0.00613597]
[1747120912806,0.58463893,102920.0,102910.0,0.00613597]
[1747120913510,0.58363893,102920.0,102910.0,0.00613597]
[1747120913912,0.58663893,102920.0,102910.0,0.00613597]
[1747120914647,0.32733508,102920.0,102910.0,0.00613597]
[1747120917593,0.57663893,102920.0,102910.0,0.00613597]
[1747120917793,0.67394833,102920.0,102910.0,0.00613597]
[1747120920593,0.67394833,102920.0,102910.0,0.01233873]
[1747120920789,0.68394833,102920.0,102910.0,0.01233873]
[1747120921752,0.88062833,102920.0,102910.0,0.01233873]
[1747120922642,1.32471546,102920.0,102910.0,0.01233873]
[1747120922890,1.22241546,102920.0,102910.0,0.01233873]
[1747120923136,1.51241546,102920.0,102910.0,0.01233873]
[1747120923365,1.80171931,102920.0,102910.0,0.01233873]
[1747120923601,1.55241546,102920.0,102910.0,0.01233873]
[1747120923855,1.79871931,102920.0,102910.0,0.01233873]
[1747120924091,1.38801015,102910.0,102900.0,4e-05]
[1747120926419,2.67032726,102890.0,102880.0,0.5]
[1747120926624,2.67032726,102890.0,102880.0,0.50048534]
[1747120926625,2.42102341,102890.0,102880.0,0.50048534]
[1747120926799,2.43596787,102890.0,102880.0,0.50048534]
[1747120927159,2.43896787,102890.0,102880.0,0.50048534]
[1747120927587,2.43596787,102890.0,102880.0,0.50048534]
[1747120927775,2.74496787,102890.0,102880.0,0.50148534]
[1747120928572,2.73596787,102890.0,102880.0,0.50048534]
[1747120928772,2.74496787,102890.0,102880.0,0.50148534]
[1747120929028,2.75396787,102890.0,102880.0,0.50248534]
[1747120929454,2.75396787,102890.0,102880.0,0.50148534]
[1747120929660,2.74496787,102890.0,102880.0,0.50148534]
[1747120929902,2.75396787,102890.0,102880.0,0.50248534]
[1747120931488,2.75396787,102890.0,102880.0,0.50764644]
[1747120932338,3.00327172,102890.0,102880.0,0.50764644]
[1747120932551,3.00327172,102890.0,102880.0,0.44386709]
[1747120932973,0.26558227,102860.0,102850.0,4e-05]
[1747120933216,1.40812577,102860.0,102850.0,0.00018563]
[1747120933459,2.12816577,102860.0,102850.0,0.00018563]
[1747120933730,2.46816577,102860.0,102850.0,0.00018563]
[1747120933938,2.16816577,102860.0,102850.0,0.00018563]
[1747120934521,2.15816577,102860.0,102850.0,0.00018563]
[1747120934895,2.19340714,102860.0,102850.0,0.00018563]
[1747120935097,2.22277666,102860.0,102850.0,0.00018563]
[1747120935314,2.16316577,102860.0,102850.0,0.00018563]
[1747120935894,2.17216577,102860.0,102850.0,0.00118563]
[1747120936139,2.16716577,102860.0,102850.0,0.00118563]
[1747120936313,2.17669594,102860.0,102850.0,0.00118563]
[1747120936528,2.18569594,102860.0,102850.0,0.00218563]
[1747120937513,2.49537594,102860.0,102850.0,0.00218563]
[1747120937922,1.68976569,102860.0,102850.0,0.00218563]
[1747120938144,1.15300184,102860.0,102850.0,0.00218563]
[1747120938361,0.75923167,102860.0,102850.0,0.00218563]
[1747120938562,0.94663167,102860.0,102850.0,0.00218563]
[1747120939438,1.19593552,102860.0,102850.0,0.00218563]
[1747120939764,1.04394107,102860.0,102850.0,0.03388563]
[1747120939945,1.04394107,102860.0,102850.0,0.23806646]
[1747120940188,1.04394107,102860.0,102850.0,0.03388563]
[1747120940307,0.62390107,102860.0,102850.0,0.03388563]
[1747120941379,0.62390107,102860.0,102850.0,0.22834357]
[1747120941583,0.32919167,102860.0,102850.0,0.23806646]
[1747120941785,0.03744266,102860.0,102850.0,0.267234]
[1747120942146,0.06660793,102860.0,102850.0,0.267234]
[1747120942384,0.26104773,102860.0,102850.0,0.267234]
[1747120942818,0.27887475,102860.0,102850.0,0.24578926]
[1747120943028,0.27115309,102860.0,102850.0,0.25551196]
[1747120943146,0.27315309,102860.0,102850.0,0.25551196]
[1747120943353,0.27315309,102860.0,102850.0,0.26523457]
[1747120944404,0.26343133,102860.0,102850.0,0.25551196]
[1747120946844,0.26343133,102860.0,102850.0,0.03188563]
[1747120947508,0.64172273,102860.0,102850.0,0.00018563]
[1747120947788,1.03556273,102860.0,102850.0,0.00018563]
[1747120948429,1.05010358,102860.0,102850.0,0.00018563]
[1747120950868,1.06010358,102860.0,102850.0,0.00018563]
[1747120951084,2.67330358,102860.0,102850.0,0.00018563]
[1747120951291,2.70046526,102860.0,102850.0,0.00018563]
[1747120951497,2.45116141,102860.0,102850.0,0.00018563]
[1747120951700,2.69846526,102860.0,102850.0,0.00018563]
[1747120952129,2.70746526,102860.0,102850.0,0.00118563]
[1747120952346,2.70546526,102860.0,102850.0,0.00118563]
[1747120952808,2.71446526,102860.0,102850.0,0.00118563]
[1747120953267,2.72346526,102860.0,102850.0,0.00218563]
[1747120956638,2.42346526,102860.0,102850.0,0.00218563]
[1747120956855,2.43306526,102860.0,102850.0,0.00218563]
[1747120960780,2.42306526,102860.0,102850.0,0.00218563]
[1747120961215,2.41306526,102860.0,102850.0,0.00218563]
[1747120961879,1.72986526,102860.0,102850.0,0.00218563]
[1747120964285,2.02986526,102860.0,102850.0,0.00218563]
[1747120965310,1.72986526,102860.0,102850.0,0.00218563]
[1747120965543,2.02986526,102860.0,102850.0,0.00218563]
[1747120965941,1.72986526,102860.0,102850.0,0.00218563]
[1747120966180,2.02986526,102860.0,102850.0,0.00218563]
[1747120967035,1.72986526,102860.0,102850.0,0.00218563]
[1747120967599,2.02986526,102860.0,102850.0,0.00218563]
[1747120967801,2.02910526,102860.0,102850.0,0.00218563]
[1747120969988,1.40712141,102860.0,102850.0,0.00218563]
[1747120970182,2.02368526,102860.0,102850.0,0.00218563]
[1747120970769,2.03368526,102860.0,102850.0,0.00218563]
[1747120970987,2.02368526,102860.0,102850.0,0.00218563]
[1747120972629,1.63132526,102860.0,102850.0,0.00218563]
[1747120972838,2.02368526,102860.0,102850.0,0.00218563]
[1747120973574,2.03938526,102860.0,102850.0,0.00218563]
[1747120979988,2.00738526,102860.0,102850.0,0.00218563]
[1747120981761,1.75808141,102860.0,102850.0,0.00218563]
[1747120981967,2.00738526,102860.0,102850.0,0.00218563]
[1747120983054,2.02338526,102860.0,102850.0,0.00218563]
[1747120983644,2.03878526,102860.0,102850.0,0.00218563]
[1747120983870,2.02338526,102860.0,102850.0,0.00218563]
[1747120984200,2.00738526,102860.0,102850.0,0.00218563]
[1747120984827,2.02348526,102860.0,102850.0,0.00218563]
[1747120985469,2.03968526,102860.0,102850.0,0.00218563]
[1747120986624,2.03968526,102860.0,102850.0,0.00218563]
[1747120987640,2.02348526,102860.0,102850.0,0.00218563]
[1747120988248,2.00738526,102860.0,102850.0,0.00218563]
[1747120988681,2.03878526,102860.0,102850.0,0.00218563]
[1747120992512,1.77368141,102860.0,102850.0,0.00218563]
[1747120992710,2.02298526,102860.0,102850.0,0.00218563]
[1747120993457,2.00738526,102860.0,102850.0,0.00218563]
[1747120994688,2.02358526,102860.0,102850.0,0.00218563]
[1747120995268,2.03358526,102860.0,102850.0,0.00218563]
[1747120995622,2.02358526,102860.0,102850.0,0.00218563]
[1747120995821,2.03938526,102860.0,102850.0,0.00218563]
[1747120996052,2.02938526,102860.0,102850.0,0.00218563]
[1747121013285,2.10795397,102860.0,102850.0,0.00218563]
[1747121015097,2.52823397,102860.0,102850.0,0.00218563]
[1747121017988,2.52823397,102860.0,102850.0,0.00218563]
[1747121020603,2.51243397,102860.0,102850.0,0.00218563]
[1747121020814,2.52803397,102860.0,102850.0,0.00218563]
[1747121022287,2.49623397,102860.0,102850.0,0.00218563]
[1747121022504,1.95666056,102860.0,102850.0,0.03318563]
[1747121022772,2.12059684,102860.0,102850.0,0.03318563]
[1747121023026,2.33029769,102860.0,102850.0,0.03318563]
[1747121023455,2.49423397,102860.0,102850.0,0.03318563]
[1747121025270,2.49423397,102860.0,102850.0,0.01728563]
[1747121026590,2.49423397,102860.0,102850.0,0.00218563]
[1747121027072,2.07395397,102860.0,102850.0,0.00218563]
[1747121028120,2.10485397,102860.0,102850.0,0.00218563]
[1747121032695,2.52513397,102860.0,102850.0,0.00218563]
[1747121034536,1.92513397,102860.0,102850.0,0.00218563]
[1747121035306,2.24972025,102860.0,102850.0,0.00218563]
[1747121035511,2.34972025,102860.0,102850.0,0.00218563]
[1747121035882,2.18578397,102860.0,102850.0,0.00218563]
[1747121036264,2.17678397,102860.0,102850.0,0.00118563]
[1747121036530,2.18678397,102860.0,102850.0,0.00218563]
[1747121036711,2.16878397,102860.0,102850.0,0.00118563]
[1747121037569,2.23809802,102860.0,102850.0,0.00218563]
[1747121037805,2.13579802,102860.0,102850.0,0.00218563]
[1747121039417,2.13551802,102860.0,102850.0,0.00218563]
[1747121040032,2.07620397,102860.0,102850.0,0.00218563]
[1747121044445,2.24014025,102860.0,102850.0,0.00218563]
[1747121045060,2.07620397,102860.0,102850.0,0.00218563]
[1747121045260,2.24014025,102860.0,102850.0,0.00218563]
[1747121045486,0.56392387,102840.0,102830.0,0.0318]
[1747121045733,0.51907019,102830.0,102820.0,0.0306]
[1747121045947,0.81747755,102830.0,102820.0,0.0306]
[1747121047182,0.81747755,102830.0,102820.0,0.0326]
[1747121047183,0.82798781,102830.0,102820.0,0.0326]
[1747121048180,0.81798781,102830.0,102820.0,0.0326]
[1747121048385,0.82898781,102830.0,102820.0,0.0346]
[1747121048572,0.92629721,102830.0,102820.0,0.0346]
[1747121049834,0.76236093,102830.0,102820.0,0.0346]
[1747121050048,0.92629721,102830.0,102820.0,0.0346]
[1747121050253,0.9406846,102830.0,102820.0,0.0346]
[1747121055349,1.2306846,102830.0,102820.0,0.0346]
[1747121056785,1.6206446,102830.0,102820.0,0.0346]
[1747121059444,1.44670832,102830.0,102820.0,0.0346]
[1747121059649,1.6206446,102830.0,102820.0,0.0346]
[1747121062482,1.6106446,102830.0,102820.0,0.0346]
[1747121062658,1.6206446,102830.0,102820.0,0.0346]
[1747121066333,1.6206446,102830.0,102820.0,0.0281]
[1747121067048,1.6106446,102830.0,102820.0,0.0281]
[1747121067258,1.6206446,102830.0,102820.0,0.0281]
[1747121068453,1.6206446,102830.0,102820.0,0.004]
[1747121070614,0.21424022,102820.0,102810.0,0.0158]
[1747121070786,0.52746675,102820.0,102810.0,0.0158]
[1747121070985,0.52746675,102820.0,102810.0,0.0157]
[1747121072060,0.52846675,102820.0,102810.0,0.0207]
[1747121072481,1.07354388,102820.0,102810.0,0.005]
[1747121072749,0.9106076,102820.0,102810.0,0.011]
[1747121073187,0.9106076,102820.0,102810.0,0.006]
[1747121073364,0.20426009,102810.0,102800.0,0.01692582]
[1747121073566,0.62084057,102810.0,102800.0,0.01692582]
[1747121073796,0.62084057,102810.0,102800.0,0.03272582]
[1747121074208,0.63538142,102810.0,102800.0,0.03272582]
[1747121074455,0.64538142,102810.0,102800.0,0.01692582]
[1747121074665,0.64538142,102810.0,102800.0,0.03272582]
[1747121075260,0.64638142,102810.0,102800.0,0.03372582]
[1747121075670,0.64738142,102810.0,102800.0,0.03672582]
[1747121076085,0.55007202,102810.0,102800.0,0.03672582]
[1747121082199,0.49836949,102810.0,102800.0,0.03672582]
[1747121084454,0.52569436,102810.0,102800.0,0.03672582]
[1747121084664,0.49836949,102810.0,102800.0,0.03672582]
[1747121087732,0.52569358,102810.0,102800.0,0.03672582]
[1747121087956,0.59567889,102810.0,102800.0,0.03672582]
[1747121089081,0.30356949,102810.0,102800.0,0.2006621]
[1747121089574,0.30356949,102810.0,102800.0,0.03672582]
[1747121090647,0.30356949,102810.0,102800.0,0.2006621]
[1747121092294,0.30356949,102810.0,102800.0,0.39521462]
[1747121092454,0.30356949,102810.0,102800.0,0.40494224]
[1747121092665,0.293843,102810.0,102800.0,0.40494224]
[1747121095609,0.34136524,102810.0,102800.0,0.40494224]
[1747121096566,0.293843,102810.0,102800.0,0.40494224]
[1747121097607,0.293843,102810.0,102800.0,0.2006621]
[1747121098012,0.293843,102810.0,102800.0,0.23127834]
[1747121098396,0.293843,102810.0,102800.0,0.24100596]
[1747121098620,0.293843,102810.0,102800.0,0.40494224]
[1747121098834,0.37043486,102810.0,102800.0,0.40494224]
[1747121099440,0.293843,102810.0,102800.0,0.40494224]
[1747121100657,0.293843,102810.0,102800.0,0.03672582]
[1747121101908,0.293843,102810.0,102800.0,0.02092582]
[1747121102336,0.293843,102810.0,102800.0,0.03602582]
[1747121103082,0.293843,102810.0,102800.0,0.1999621]
[1747121103289,0.293843,102810.0,102800.0,0.40424224]
[1747121104390,0.293843,102810.0,102800.0,0.1999621]
[1747121105387,0.31503796,102810.0,102800.0,0.1999621]
[1747121106478,0.31503796,102810.0,102800.0,0.39451462]
[1747121107179,0.293843,102810.0,102800.0,0.39451462]
[1747121107385,0.0993094,102810.0,102800.0,0.42369635]
[1747121107590,0.3035692,102810.0,102800.0,0.41396939]
[1747121107805,0.31329569,102810.0,102800.0,0.41396939]
[1747121108009,0.31329569,102810.0,102800.0,0.41396958]
[1747121108205,0.30356949,102810.0,102800.0,0.40424215]
[1747121109480,0.30356949,102810.0,102800.0,0.41396949]
[1747121110640,0.30356949,102810.0,102800.0,0.40424215]
[1747121111878,0.293843,102810.0,102800.0,0.40424215]
[1747121112552,0.293843,102810.0,102800.0,0.41396958]
[1747121113506,0.30356949,102810.0,102800.0,0.59736025]
[1747121113734,0.30356949,102810.0,102800.0,0.43342416]
[1747121114130,0.02145269,102810.0,102800.0,0.59736044]
[1747121114334,0.03117851,102810.0,102800.0,0.6070874]
[1747121114779,0.03117851,102810.0,102800.0,0.6770874]
[1747121115689,0.040905,102810.0,102800.0,0.6770874]
[1747121120235,0.040905,102810.0,102800.0,0.6770874]
[1747121122582,0.02145212,102810.0,102800.0,0.6770874]
[1747121122793,0.002,102810.0,102800.0,1.0170874]
[1747121122985,0.01172582,102810.0,102800.0,1.0170874]
[1747121123213,0.02145183,102810.0,102800.0,1.0170874]
[1747121123783,0.002,102810.0,102800.0,1.0170874]
[1747121123984,0.01172582,102810.0,102800.0,1.0170874]
[1747121124186,0.002,102810.0,102800.0,1.0170874]
[1747121128296,0.002,102810.0,102800.0,1.4170874]
[1747121129295,0.002,102810.0,102800.0,1.67833308]
[1747121129871,0.001,102810.0,102800.0,1.67733308]
[1747121130190,0.24311779,102830.0,102820.0,0.21396566]
[1747121130398,0.05389725,102830.0,102820.0,0.39735217]
[1747121130963,0.2581177,102830.0,102820.0,0.39735217]
[1747121131419,0.30396844,102830.0,102820.0,0.21496566]
[1747121131630,0.31926844,102830.0,102820.0,0.22469082]
[1747121131825,0.31926844,102830.0,102820.0,0.21496566]
[1747121132034,0.30396844,102830.0,102820.0,0.21496566]
[1747121132231,0.25039423,102830.0,102820.0,0.21496566]
[1747121132443,0.25039423,102830.0,102820.0,0.37890194]
[1747121134791,0.24066982,102830.0,102820.0,0.37890213]
[1747121135465,0.22566982,102830.0,102820.0,0.38862758]
[1747121136471,0.22566982,102830.0,102820.0,0.56756386]
[1747121137067,0.22566982,102830.0,102820.0,0.40362758]
[1747121137273,0.22566982,102830.0,102820.0,0.41335284]
[1747121137447,0.02144834,102830.0,102820.0,0.60201419]
[1747121137636,0.04089743,102830.0,102820.0,0.60201419]
[1747121138241,0.05062212,102830.0,102820.0,0.60201419]
[1747121138731,0.05062212,102830.0,102820.0,0.94201419]
[1747121138732,0.002,102830.0,102820.0,0.94201419]
[1747121138951,0.01172412,102830.0,102820.0,0.94201419]
[1747121139382,0.01172412,102830.0,102820.0,0.60201419]
[1747121139585,0.01172431,102830.0,102820.0,0.60201419]
[1747121139985,0.02144825,102830.0,102820.0,0.60201419]
[1747121140356,0.02144815,102830.0,102820.0,0.60201419]
[1747121140562,0.04089678,102830.0,102820.0,0.60201419]
[1747121142334,0.01172403,102830.0,102820.0,0.60201419]
[1747121142557,0.02144825,102830.0,102820.0,0.60201419]
[1747121142763,0.03117256,102830.0,102820.0,0.60201419]
[1747121143154,0.04089706,102830.0,102820.0,0.27414163]
[1747121143507,0.03117256,102830.0,102820.0,0.58701419]
[1747121144579,0.04089706,102830.0,102820.0,0.58701419]
[1747121144788,0.25716463,102830.0,102820.0,0.001]
[1747121145000,0.37037403,102830.0,102820.0,0.20524041]
[1747121145214,0.37037403,102830.0,102820.0,0.21496604]
[1747121145596,0.36064953,102830.0,102820.0,0.21496604]
[1747121146006,0.36064953,102830.0,102820.0,0.20524041]
[1747121146211,0.35092494,102830.0,102820.0,0.19551468]
[1747121146452,0.35092494,102830.0,102820.0,0.001]
[1747121149281,0.32490516,102830.0,102820.0,0.001]
[1747121157863,0.30352975,102830.0,102820.0,0.3846765]
[1747121158068,0.31972975,102830.0,102820.0,0.37890214]
[1747121158308,0.002,102830.0,102820.0,0.59448884]
[1747121158430,0.04089686,102830.0,102820.0,0.43055256]
[1747121159591,0.04089686,102830.0,102820.0,0.41485256]
[1747121160158,0.24511731,102830.0,102820.0,0.41485256]
[1747121160357,0.2970728,102830.0,102820.0,0.38862749]
[1747121160558,0.30679758,102830.0,102820.0,0.39835275]
[1747121161466,0.26121816,102830.0,102820.0,0.39835275]
[1747121162092,0.24511816,102830.0,102820.0,0.40807791]
[1747121162299,0.23539413,102830.0,102820.0,0.38862702]
[1747121162508,0.22566982,102830.0,102820.0,0.38862702]
[1747121164344,0.22566982,102830.0,102820.0,0.37890176]
[1747121164844,0.22566982,102830.0,102820.0,0.37890214]
[1747121165055,0.21594523,102830.0,102820.0,0.37890214]
[1747121165483,0.01172441,102830.0,102820.0,0.57878884]
[1747121165696,0.03117293,102830.0,102820.0,0.94431391]
[1747121165900,0.22566869,102830.0,102820.0,0.94431391]
[1747121166102,0.23539347,102830.0,102820.0,0.76457763]
[1747121166745,0.27117945,102830.0,102820.0,0.71890232]
[1747121166948,0.22566944,102830.0,102820.0,0.73835303]
[1747121167094,0.22566944,102830.0,102820.0,0.74807753]
[1747121167294,0.03117368,102830.0,102820.0,0.74807753]
[1747121167500,0.22566944,102830.0,102820.0,0.74807753]
[1747121167722,0.03117368,102830.0,102820.0,0.74807753]
[1747121167953,0.22566944,102830.0,102820.0,0.7286273]
[1747121168153,0.0214489,102830.0,102820.0,0.73835237]
[1747121168357,0.22566935,102830.0,102820.0,0.7286273]
[1747121168594,0.23539413,102830.0,102820.0,0.7286273]
[1747121169197,0.31182183,102830.0,102820.0,0.7286273]
[1747121169409,0.29652183,102830.0,102820.0,0.7286273]
[1747121169617,0.25049413,102830.0,102820.0,0.73835246]
[1747121171278,0.23539413,102830.0,102820.0,0.73835246]
[1747121171479,0.23539413,102830.0,102820.0,0.76367753]
[1747121172403,0.04089837,102830.0,102820.0,0.76367753]
[1747121173405,0.03117359,102830.0,102820.0,0.76367753]
[1747121174914,0.0214489,102830.0,102820.0,0.74807753]
[1747121175730,0.0214489,102830.0,102820.0,0.76317753]